[Event "*** SCC Grand Prix: Titled Tuesday Blitz"]
[Site "Chess.com"]
[Date "2020.09.29"]
[Round "2"]
[White "Fh2411"]
[Black "ChronicUnhappiness"]
[Result "1-0"]
[WhiteElo "2528"]
[BlackElo "2309"]
[TimeControl "180+1"]
[EndTime "10:12:32 PDT"]
[Termination "Fh2411 won by resignation"]

1. Nf3 {[%clk 0:03:00.9]} 1... d5 {[%clk 0:02:59.5]} 2. d4 {[%clk 0:03:00.9]}
2... Nf6 {[%clk 0:02:58.7]} 3. Bf4 {[%clk 0:03:01.1]} 3... Bf5 {[%clk
0:02:57.9]} 4. c4 {[%clk 0:03:00]} 4... e6 {[%clk 0:02:57.7]} 5. Nc3 {[%clk
0:03:00.3]} 5... Bb4 {[%clk 0:02:57]} 6. e3 {[%clk 0:02:56.2]} 6... c5 {[%clk
0:02:56.7]} 7. a3 {[%clk 0:02:53.8]} 7... Bxc3+ {[%clk 0:02:55.7]} 8. bxc3
{[%clk 0:02:54.5]} 8... Qa5 {[%clk 0:02:47]} 9. Qb3 {[%clk 0:02:49.9]} 9... O-O
{[%clk 0:02:35.5]} 10. Bd6 {[%clk 0:02:36.8]} 10... Ne4 {[%clk 0:01:55.5]} 11.
Bxf8 {[%clk 0:02:34.7]} 11... Nxc3 {[%clk 0:01:45.4]} 12. Bxc5 {[%clk
0:02:32.8]} 12... Na6 {[%clk 0:01:44.5]} 13. Bb4 {[%clk 0:02:29.8]} 13... Nxb4
{[%clk 0:01:43.5]} 14. Qxb4 {[%clk 0:02:30.7]} 1-0

[Event "*** SCC Grand Prix: Titled Tuesday Blitz"]
[Site "Chess.com"]
[Date "2020.09.29"]
[Round "2"]
[White "Joshukid"]
[Black "Indianlad"]
[Result "0-1"]
[WhiteElo "2576"]
[BlackElo "2934"]
[TimeControl "180+1"]
[EndTime "10:12:34 PDT"]
[Termination "Indianlad won by resignation"]

1. Nf3 {[%clk 0:03:00.9]} 1... d5 {[%clk 0:02:59.2]} 2. d4 {[%clk 0:02:55.2]}
2... Bf5 {[%clk 0:02:58.5]} 3. Bf4 {[%clk 0:02:53.9]} 3... e6 {[%clk 0:02:56]}
4. e3 {[%clk 0:02:53.5]} 4... c5 {[%clk 0:02:52.9]} 5. Bb5+ {[%clk 0:02:50.7]}
5... Nc6 {[%clk 0:02:51.5]} 6. O-O {[%clk 0:02:50.9]} 6... Bd6 {[%clk
0:02:48.9]} 7. Bg3 {[%clk 0:02:47.1]} 7... Ne7 {[%clk 0:02:47.3]} 8. Ne5 {[%clk
0:02:41.3]} 8... O-O {[%clk 0:02:46.6]} 9. Nxc6 {[%clk 0:02:38.7]} 9... bxc6
{[%clk 0:02:46.3]} 10. Bd3 {[%clk 0:02:36.8]} 10... Bxg3 {[%clk 0:02:44.3]} 11.
hxg3 {[%clk 0:02:36.2]} 11... cxd4 {[%clk 0:02:43.9]} 12. exd4 {[%clk
0:02:33.8]} 12... Qb6 {[%clk 0:02:44.5]} 13. Nc3 {[%clk 0:02:01.9]} 13... Qxd4
{[%clk 0:02:35.1]} 14. Bxf5 {[%clk 0:01:55.1]} 14... Nxf5 {[%clk 0:02:35.2]} 15.
Qe2 {[%clk 0:01:53.4]} 15... Rab8 {[%clk 0:02:34.5]} 16. Rab1 {[%clk 0:01:52.5]}
16... Nxg3 {[%clk 0:02:29.9]} 0-1

[Event "*** SCC Grand Prix: Titled Tuesday Blitz"]
[Site "Chess.com"]
[Date "2020.09.29"]
[Round "2"]
[White "mr65"]
[Black "kobemagic"]
[Result "0-1"]
[WhiteElo "2156"]
[BlackElo "2407"]
[TimeControl "180+1"]
[EndTime "10:12:41 PDT"]
[Termination "kobemagic won by resignation"]

1. e4 {[%clk 0:02:53.2]} 1... Nf6 {[%clk 0:02:59.7]} 2. e5 {[%clk 0:02:50.4]}
2... Nd5 {[%clk 0:02:59.8]} 3. d4 {[%clk 0:02:48.4]} 3... d6 {[%clk 0:03:00]} 4.
Nf3 {[%clk 0:02:48]} 4... dxe5 {[%clk 0:02:59.9]} 5. Nxe5 {[%clk 0:02:46.9]}
5... c6 {[%clk 0:03:00.1]} 6. c3 {[%clk 0:02:42.6]} 6... Nd7 {[%clk 0:02:58.6]}
7. Nxd7 {[%clk 0:02:41.2]} 7... Bxd7 {[%clk 0:02:58.2]} 8. g3 {[%clk 0:02:40.2]}
8... g6 {[%clk 0:02:57.5]} 9. Bg2 {[%clk 0:02:39.8]} 9... Bg7 {[%clk 0:02:58.1]}
10. O-O {[%clk 0:02:39.4]} 10... O-O {[%clk 0:02:58.7]} 11. Nd2 {[%clk 0:02:36]}
11... Qc7 {[%clk 0:02:56.2]} 12. Nf3 {[%clk 0:02:34.9]} 12... Bg4 {[%clk
0:02:55.5]} 13. h3 {[%clk 0:02:33.3]} 13... Bf5 {[%clk 0:02:56]} 14. Nh4 {[%clk
0:02:28.2]} 14... Be6 {[%clk 0:02:54.8]} 15. f4 {[%clk 0:02:27.7]} 15... Rad8
{[%clk 0:02:38.8]} 16. f5 {[%clk 0:02:26.1]} 16... Bc8 {[%clk 0:02:38.9]} 17.
Bf4 {[%clk 0:02:20.1]} 17... Nxf4 {[%clk 0:02:37.5]} 18. Rxf4 {[%clk 0:02:17.3]}
18... g5 {[%clk 0:02:34.8]} 19. f6 {[%clk 0:02:12]} 19... exf6 {[%clk
0:02:25.5]} 20. Re4 {[%clk 0:02:07.9]} 20... gxh4 {[%clk 0:02:22.9]} 21. Rxh4
{[%clk 0:02:04.1]} 21... Qxg3 {[%clk 0:02:20.2]} 22. Qh5 {[%clk 0:02:03.2]}
22... Qg6 {[%clk 0:02:17.8]} 0-1

[Event "*** SCC Grand Prix: Titled Tuesday Blitz"]
[Site "Chess.com"]
[Date "2020.09.29"]
[Round "2"]
[White "almaguerjm"]
[Black "Justinz"]
[Result "1-0"]
[WhiteElo "2304"]
[BlackElo "2436"]
[TimeControl "180+1"]
[EndTime "10:12:55 PDT"]
[Termination "almaguerjm won by resignation"]

1. d4 {[%clk 0:03:00.9]} 1... Nf6 {[%clk 0:02:59.2]} 2. Nc3 {[%clk 0:02:53.4]}
2... e6 {[%clk 0:03:00.1]} 3. Bf4 {[%clk 0:02:52.9]} 3... d5 {[%clk 0:02:58.4]}
4. e3 {[%clk 0:02:53.2]} 4... Bd6 {[%clk 0:02:57]} 5. Qf3 {[%clk 0:02:52.5]}
5... O-O {[%clk 0:02:55.9]} 6. Bd3 {[%clk 0:02:52.4]} 6... c5 {[%clk 0:02:55.4]}
7. dxc5 {[%clk 0:02:49.4]} 7... Bxc5 {[%clk 0:02:54.7]} 8. O-O-O {[%clk
0:02:49.6]} 8... Nbd7 {[%clk 0:02:52.8]} 9. Bg5 {[%clk 0:02:36]} 9... Ne5 {[%clk
0:02:36.3]} 10. Qg3 {[%clk 0:02:32.8]} 10... Nxd3+ {[%clk 0:02:35.1]} 11. Rxd3
{[%clk 0:02:33.4]} 11... Kh8 {[%clk 0:02:26.4]} 12. Nge2 {[%clk 0:02:29.7]}
12... a6 {[%clk 0:02:25.5]} 13. e4 {[%clk 0:02:21.9]} 13... d4 {[%clk
0:02:18.4]} 14. e5 {[%clk 0:02:21.2]} 14... Nh5 {[%clk 0:02:11.1]} 15. Qh4
{[%clk 0:02:14.4]} 15... Qc7 {[%clk 0:01:58.9]} 16. Qxh5 {[%clk 0:01:52.1]}
16... dxc3 {[%clk 0:01:57.8]} 17. Rh3 {[%clk 0:01:51.7]} 1-0

[Event "*** SCC Grand Prix: Titled Tuesday Blitz"]
[Site "Chess.com"]
[Date "2020.09.29"]
[Round "2"]
[White "fighter2jz"]
[Black "barbara25"]
[Result "1-0"]
[WhiteElo "2647"]
[BlackElo "2342"]
[TimeControl "180+1"]
[EndTime "10:13:04 PDT"]
[Termination "fighter2jz won by resignation"]

1. e4 {[%clk 0:03:00.9]} 1... c5 {[%clk 0:02:59.5]} 2. Nf3 {[%clk 0:02:59.8]}
2... d6 {[%clk 0:02:59]} 3. d4 {[%clk 0:02:58.4]} 3... cxd4 {[%clk 0:02:58.2]}
4. Nxd4 {[%clk 0:02:59.3]} 4... Nf6 {[%clk 0:02:56.8]} 5. Nc3 {[%clk 0:02:59]}
5... a6 {[%clk 0:02:56.4]} 6. h3 {[%clk 0:02:58.6]} 6... e5 {[%clk 0:02:53.8]}
7. Nde2 {[%clk 0:02:57.3]} 7... Be7 {[%clk 0:02:53]} 8. g4 {[%clk 0:02:56.7]}
8... Be6 {[%clk 0:02:52.3]} 9. Bg2 {[%clk 0:02:55.8]} 9... Nc6 {[%clk
0:02:51.9]} 10. O-O {[%clk 0:02:49.7]} 10... b5 {[%clk 0:02:50.1]} 11. Nd5
{[%clk 0:02:45.4]} 11... Bxd5 {[%clk 0:02:48.9]} 12. exd5 {[%clk 0:02:45]} 12...
Na5 {[%clk 0:02:48.1]} 13. Ng3 {[%clk 0:02:36.1]} 13... g6 {[%clk 0:02:46.5]}
14. f4 {[%clk 0:02:30.1]} 14... exf4 {[%clk 0:02:46.3]} 15. Bxf4 {[%clk
0:02:29.6]} 15... O-O {[%clk 0:02:45.8]} 16. Bh6 {[%clk 0:02:29]} 16... Re8
{[%clk 0:02:45.3]} 17. Qf3 {[%clk 0:02:28.7]} 17... Nc4 {[%clk 0:02:40.3]} 18.
Ne4 {[%clk 0:02:21.7]} 18... Ne5 {[%clk 0:01:33.8]} 19. Nxf6+ {[%clk 0:02:20]}
19... Kh8 {[%clk 0:01:33.3]} 20. Qf2 {[%clk 0:02:14.3]} 1-0

[Event "*** SCC Grand Prix: Titled Tuesday Blitz"]
[Site "Chess.com"]
[Date "2020.09.29"]
[Round "2"]
[White "SophieNikoladze"]
[Black "Chigorinetz"]
[Result "1-0"]
[WhiteElo "2279"]
[BlackElo "2422"]
[TimeControl "180+1"]
[EndTime "10:13:04 PDT"]
[Termination "SophieNikoladze won by resignation"]

1. d4 {[%clk 0:03:00.9]} 1... d5 {[%clk 0:02:56.5]} 2. Nf3 {[%clk 0:03:00.9]}
2... Nc6 {[%clk 0:02:55.8]} 3. e3 {[%clk 0:03:00.5]} 3... Bg4 {[%clk 0:02:55.2]}
4. Nbd2 {[%clk 0:02:57.9]} 4... e5 {[%clk 0:02:53.6]} 5. dxe5 {[%clk 0:02:56.1]}
5... Nxe5 {[%clk 0:02:53.1]} 6. Be2 {[%clk 0:02:54.3]} 6... Nxf3+ {[%clk
0:02:51.2]} 7. Nxf3 {[%clk 0:02:54.2]} 7... Nf6 {[%clk 0:02:50.7]} 8. O-O {[%clk
0:02:54.6]} 8... Bd6 {[%clk 0:02:49.8]} 9. c4 {[%clk 0:02:54.3]} 9... dxc4
{[%clk 0:02:48.7]} 10. Qa4+ {[%clk 0:02:53.6]} 10... Qd7 {[%clk 0:02:39]} 11.
Qxc4 {[%clk 0:02:52.3]} 11... O-O {[%clk 0:02:34.5]} 12. h3 {[%clk 0:02:51.4]}
12... Be6 {[%clk 0:02:31.6]} 13. Qh4 {[%clk 0:02:50.9]} 13... Rfe8 {[%clk
0:02:16.1]} 14. e4 {[%clk 0:02:50.2]} 14... Nxe4 {[%clk 0:02:09.6]} 15. Qxe4
{[%clk 0:02:43.2]} 15... Bxh3 {[%clk 0:02:08.1]} 16. Qh4 {[%clk 0:02:40.5]}
16... Bxg2 {[%clk 0:02:02]} 17. Bd3 {[%clk 0:02:23.3]} 17... Bxf3 {[%clk
0:01:48.2]} 18. Qxh7+ {[%clk 0:02:21]} 18... Kf8 {[%clk 0:01:47.3]} 19. Qh8+
{[%clk 0:02:20.7]} 19... Ke7 {[%clk 0:01:44.3]} 20. Bg5+ {[%clk 0:02:20.2]}
20... Ke6 {[%clk 0:01:39.9]} 21. Qh3+ {[%clk 0:02:18.3]} 1-0

[Event "*** SCC Grand Prix: Titled Tuesday Blitz"]
[Site "Chess.com"]
[Date "2020.09.29"]
[Round "2"]
[White "ZverevLev"]
[Black "aljado"]
[Result "0-1"]
[WhiteElo "2362"]
[BlackElo "2063"]
[TimeControl "180+1"]
[EndTime "10:13:09 PDT"]
[Termination "aljado won by resignation"]

1. e4 {[%clk 0:03:00.8]} 1... c5 {[%clk 0:02:59.7]} 2. Nf3 {[%clk 0:02:59.9]}
2... e6 {[%clk 0:02:59.8]} 3. d4 {[%clk 0:02:59.4]} 3... cxd4 {[%clk 0:03:00]}
4. Nxd4 {[%clk 0:03:00.3]} 4... Bc5 {[%clk 0:02:59.6]} 5. Nb3 {[%clk 0:02:58.8]}
5... Bb6 {[%clk 0:02:59.4]} 6. Nc3 {[%clk 0:02:58.6]} 6... Ne7 {[%clk
0:02:58.9]} 7. Qg4 {[%clk 0:02:57]} 7... O-O {[%clk 0:02:58.5]} 8. Bd3 {[%clk
0:02:54.9]} 8... f5 {[%clk 0:02:57.8]} 9. exf5 {[%clk 0:02:44.9]} 9... Nxf5
{[%clk 0:02:56.6]} 10. O-O {[%clk 0:02:40.7]} 10... Nc6 {[%clk 0:02:52.7]} 11.
Bg5 {[%clk 0:02:34.8]} 11... Qe8 {[%clk 0:02:52.2]} 12. Rae1 {[%clk 0:02:31.4]}
12... Qg6 {[%clk 0:02:50.7]} 13. h4 {[%clk 0:02:13.2]} 13... h6 {[%clk 0:02:46]}
14. Bxf5 {[%clk 0:02:06.7]} 14... Rxf5 {[%clk 0:02:41.7]} 15. Ne4 {[%clk
0:02:00.6]} 15... hxg5 {[%clk 0:02:38.4]} 16. Nxg5 {[%clk 0:02:01.5]} 16... d5
{[%clk 0:02:29.1]} 17. Qd1 {[%clk 0:01:47.5]} 17... Bd7 {[%clk 0:02:25.4]} 18.
c3 {[%clk 0:01:41.7]} 18... Raf8 {[%clk 0:02:24.2]} 19. Qd2 {[%clk 0:01:40.1]}
19... Rxf2 {[%clk 0:02:09.2]} 20. Rxf2 {[%clk 0:01:35.4]} 0-1

[Event "*** SCC Grand Prix: Titled Tuesday Blitz"]
[Site "Chess.com"]
[Date "2020.09.29"]
[Round "2"]
[White "Jadeit90"]
[Black "angryhorse9"]
[Result "0-1"]
[WhiteElo "2316"]
[BlackElo "2541"]
[TimeControl "180+1"]
[EndTime "10:13:12 PDT"]
[Termination "angryhorse9 won by checkmate"]

1. g3 {[%clk 0:03:00.9]} 1... d5 {[%clk 0:02:59.1]} 2. Bg2 {[%clk 0:03:01.4]}
2... Nf6 {[%clk 0:03:00]} 3. c4 {[%clk 0:03:01.5]} 3... e6 {[%clk 0:03:00.9]} 4.
cxd5 {[%clk 0:03:01.8]} 4... exd5 {[%clk 0:03:01.8]} 5. Nf3 {[%clk 0:03:02.4]}
5... Be7 {[%clk 0:03:02.7]} 6. O-O {[%clk 0:03:03.1]} 6... O-O {[%clk
0:03:03.6]} 7. d3 {[%clk 0:03:04]} 7... c6 {[%clk 0:03:04.5]} 8. Nc3 {[%clk
0:03:04.7]} 8... Bg4 {[%clk 0:03:03.4]} 9. e4 {[%clk 0:03:04.7]} 9... dxe4
{[%clk 0:02:53.5]} 10. dxe4 {[%clk 0:03:05.6]} 10... Na6 {[%clk 0:02:49.8]} 11.
h3 {[%clk 0:03:05]} 11... Bxf3 {[%clk 0:02:47.2]} 12. Qxf3 {[%clk 0:03:04.6]}
12... Nd7 {[%clk 0:02:44.6]} 13. Rd1 {[%clk 0:03:04.3]} 13... Qc7 {[%clk
0:02:41.9]} 14. Bf4 {[%clk 0:03:02.5]} 14... Ne5 {[%clk 0:02:42.4]} 15. Qh5
{[%clk 0:02:59.1]} 15... Bf6 {[%clk 0:02:33.5]} 16. Rac1 {[%clk 0:02:57.1]}
16... g6 {[%clk 0:02:26.8]} 17. Qe2 {[%clk 0:02:56]} 17... Qe7 {[%clk
0:02:22.9]} 18. Bxe5 {[%clk 0:02:51.8]} 18... Bxe5 {[%clk 0:02:23.8]} 19. f4
{[%clk 0:02:52.1]} 19... Bc7 {[%clk 0:02:15.8]} 20. e5 {[%clk 0:02:52.1]} 20...
f6 {[%clk 0:02:13.5]} 21. Bxc6 {[%clk 0:02:43.9]} 21... bxc6 {[%clk 0:02:07.1]}
22. Qxa6 {[%clk 0:02:43.9]} 22... Bb6+ {[%clk 0:02:06.3]} 23. Kg2 {[%clk
0:02:41.3]} 23... fxe5 {[%clk 0:02:06.8]} 24. Qc4+ {[%clk 0:02:40.9]} 24... Kh8
{[%clk 0:02:04.1]} 25. Qxc6 {[%clk 0:02:39.9]} 25... exf4 {[%clk 0:02:01]} 26.
Rd7 {[%clk 0:02:39.9]} 26... f3+ {[%clk 0:01:43.5]} 27. Kh2 {[%clk 0:02:38.9]}
27... Qe3 {[%clk 0:01:43.4]} 28. h4 {[%clk 0:02:29.8]} 28... Qf2+ {[%clk
0:01:34.5]} 29. Kh3 {[%clk 0:02:30]} 29... Qg2+ {[%clk 0:01:35.2]} 30. Kg4
{[%clk 0:02:30.2]} 30... h5+ {[%clk 0:01:35.9]} 31. Kg5 {[%clk 0:02:29.8]} 31...
Qxg3+ {[%clk 0:01:36.2]} 32. Kh6 {[%clk 0:02:29.6]} 32... Be3# {[%clk
0:01:36.9]} 0-1

[Event "*** SCC Grand Prix: Titled Tuesday Blitz"]
[Site "Chess.com"]
[Date "2020.09.29"]
[Round "2"]
[White "BAS8892"]
[Black "Kotofeyca"]
[Result "1-0"]
[WhiteElo "2665"]
[BlackElo "2343"]
[TimeControl "180+1"]
[EndTime "10:13:30 PDT"]
[Termination "BAS8892 won by checkmate"]

1. e4 {[%clk 0:03:00.9]} 1... c5 {[%clk 0:02:57.7]} 2. Nf3 {[%clk 0:03:00.8]}
2... d6 {[%clk 0:02:58]} 3. d4 {[%clk 0:03:00.3]} 3... cxd4 {[%clk 0:02:58.9]}
4. Nxd4 {[%clk 0:03:00.6]} 4... Nf6 {[%clk 0:02:59.5]} 5. Nc3 {[%clk 0:03:00.6]}
5... a6 {[%clk 0:03:00]} 6. h3 {[%clk 0:03:00.9]} 6... e6 {[%clk 0:02:58]} 7. g4
{[%clk 0:03:00.8]} 7... b5 {[%clk 0:02:58.6]} 8. Bg2 {[%clk 0:03:00.8]} 8... Bb7
{[%clk 0:02:59.1]} 9. O-O {[%clk 0:03:00.6]} 9... b4 {[%clk 0:02:58.3]} 10. Nd5
{[%clk 0:02:57.1]} 10... exd5 {[%clk 0:02:57.3]} 11. exd5 {[%clk 0:02:57.3]}
11... Bxd5 {[%clk 0:02:37.9]} 12. Re1+ {[%clk 0:02:51.9]} 12... Kd7 {[%clk
0:02:37.1]} 13. Bxd5 {[%clk 0:02:46.3]} 13... Nxd5 {[%clk 0:02:36]} 14. Qf3
{[%clk 0:02:46.9]} 14... Nb6 {[%clk 0:02:24.3]} 15. Qxf7+ {[%clk 0:02:40.1]}
15... Be7 {[%clk 0:02:06.9]} 16. Bg5 {[%clk 0:02:37.1]} 16... Re8 {[%clk
0:02:04.5]} 17. Rad1 {[%clk 0:02:37.5]} 17... Ra7 {[%clk 0:01:50.3]} 18. Qe6+
{[%clk 0:02:36.8]} 18... Kc7 {[%clk 0:01:49.1]} 19. Bxe7 {[%clk 0:02:36.9]}
19... Qd7 {[%clk 0:01:39.7]} 20. Bxd6+ {[%clk 0:02:36.2]} 20... Kb7 {[%clk
0:01:11.9]} 21. Qxe8 {[%clk 0:02:32.9]} 21... Qxd6 {[%clk 0:01:11.9]} 22. Nb5
{[%clk 0:02:26.1]} 22... Qf4 {[%clk 0:01:02.4]} 23. Re7+ {[%clk 0:02:25.3]}
23... Ka8 {[%clk 0:01:02.4]} 24. Rxa7# {[%clk 0:02:24.8]} 1-0

[Event "*** SCC Grand Prix: Titled Tuesday Blitz"]
[Site "Chess.com"]
[Date "2020.09.29"]
[Round "2"]
[White "Vision_64"]
[Black "AnkitGajwa"]
[Result "1/2-1/2"]
[WhiteElo "2209"]
[BlackElo "2414"]
[TimeControl "180+1"]
[EndTime "10:13:36 PDT"]
[Termination "Game drawn by agreement"]

1. e4 {[%clk 0:03:00.9]} 1... e5 {[%clk 0:02:52.7]} 2. Nf3 {[%clk 0:03:00.5]}
2... Nc6 {[%clk 0:02:27]} 3. Bc4 {[%clk 0:02:56.8]} 3... Nf6 {[%clk 0:02:18.4]}
4. d3 {[%clk 0:02:54.2]} 4... Be7 {[%clk 0:02:15.9]} 5. c3 {[%clk 0:02:50.6]}
5... O-O {[%clk 0:02:14.6]} 6. h3 {[%clk 0:02:44.1]} 6... d5 {[%clk 0:02:14.3]}
7. exd5 {[%clk 0:02:42.6]} 7... Nxd5 {[%clk 0:02:13.7]} 8. O-O {[%clk 0:02:42]}
8... Nb6 {[%clk 0:02:12.8]} 9. Bb3 {[%clk 0:02:40.8]} 9... Bf5 {[%clk
0:02:11.7]} 10. Bc2 {[%clk 0:02:23.2]} 10... Qd7 {[%clk 0:02:11.1]} 11. Re1
{[%clk 0:02:20.7]} 11... Rad8 {[%clk 0:02:07.8]} 12. Nxe5 {[%clk 0:02:06.9]}
12... Nxe5 {[%clk 0:02:07.6]} 13. Rxe5 {[%clk 0:02:05.5]} 13... Bxd3 {[%clk
0:02:08.2]} 14. Bxd3 {[%clk 0:01:51.1]} 14... Qxd3 {[%clk 0:02:07.4]} 15. Qe1
{[%clk 0:01:39.2]} 15... Bf6 {[%clk 0:01:56.3]} 16. Re3 {[%clk 0:01:36.5]} 16...
Qc2 {[%clk 0:01:56.4]} 17. Re2 {[%clk 0:01:20.8]} 17... Rd2 {[%clk 0:01:55.4]}
1/2-1/2

[Event "*** SCC Grand Prix: Titled Tuesday Blitz"]
[Site "Chess.com"]
[Date "2020.09.29"]
[Round "2"]
[White "monalize"]
[Black "carlsen1001"]
[Result "1-0"]
[WhiteElo "2297"]
[BlackElo "2430"]
[TimeControl "180+1"]
[EndTime "10:13:37 PDT"]
[Termination "monalize won by resignation"]

1. e4 {[%clk 0:02:56]} 1... c5 {[%clk 0:02:59.6]} 2. Nf3 {[%clk 0:02:51.1]} 2...
Nc6 {[%clk 0:02:57.5]} 3. d4 {[%clk 0:02:49.8]} 3... cxd4 {[%clk 0:02:58.4]} 4.
Nxd4 {[%clk 0:02:49]} 4... Nf6 {[%clk 0:02:59]} 5. Nc3 {[%clk 0:02:47.7]} 5...
d6 {[%clk 0:02:59.3]} 6. Bg5 {[%clk 0:02:45]} 6... e6 {[%clk 0:02:59.1]} 7. Qd2
{[%clk 0:02:43.4]} 7... a6 {[%clk 0:02:58.4]} 8. O-O-O {[%clk 0:02:42.3]} 8...
Bd7 {[%clk 0:02:57.8]} 9. f3 {[%clk 0:02:39.9]} 9... Be7 {[%clk 0:02:53.3]} 10.
h4 {[%clk 0:02:37.7]} 10... Nxd4 {[%clk 0:02:52.8]} 11. Qxd4 {[%clk 0:02:36.6]}
11... Qc7 {[%clk 0:02:53.4]} 12. Kb1 {[%clk 0:02:36]} 12... b5 {[%clk
0:02:51.8]} 13. a3 {[%clk 0:02:27.6]} 13... h6 {[%clk 0:02:15.9]} 14. Bc1 {[%clk
0:02:20]} 14... O-O {[%clk 0:02:04.2]} 15. g4 {[%clk 0:02:18.3]} 15... Nh7
{[%clk 0:02:02.4]} 16. g5 {[%clk 0:02:11.5]} 16... h5 {[%clk 0:02:02.3]} 17. f4
{[%clk 0:02:03.7]} 17... f5 {[%clk 0:01:58.3]} 18. exf5 {[%clk 0:01:59.9]} 18...
Rxf5 {[%clk 0:01:57.2]} 19. Bd3 {[%clk 0:01:48]} 19... Rc5 {[%clk 0:01:50.7]}
20. Qe4 {[%clk 0:01:40.8]} 1-0

[Event "*** SCC Grand Prix: Titled Tuesday Blitz"]
[Site "Chess.com"]
[Date "2020.09.29"]
[Round "2"]
[White "AsaHoffmann"]
[Black "rududuyk"]
[Result "1-0"]
[WhiteElo "2402"]
[BlackElo "2135"]
[TimeControl "180+1"]
[EndTime "10:13:37 PDT"]
[Termination "AsaHoffmann won by resignation"]

1. d4 {[%clk 0:02:58.3]} 1... e6 {[%clk 0:02:48.4]} 2. e4 {[%clk 0:02:57.4]}
2... d5 {[%clk 0:02:46]} 3. e5 {[%clk 0:02:56.4]} 3... c5 {[%clk 0:02:44.3]} 4.
Nf3 {[%clk 0:02:55.4]} 4... cxd4 {[%clk 0:02:36.1]} 5. Qxd4 {[%clk 0:02:54.5]}
5... Nc6 {[%clk 0:02:34.8]} 6. Qf4 {[%clk 0:02:54]} 6... Qc7 {[%clk 0:02:18.9]}
7. Nc3 {[%clk 0:02:52.2]} 7... a6 {[%clk 0:02:16.6]} 8. Bd3 {[%clk 0:02:51.3]}
8... Nge7 {[%clk 0:02:07.7]} 9. O-O {[%clk 0:02:48.7]} 9... Ng6 {[%clk
0:02:05.9]} 10. Qg3 {[%clk 0:02:48.5]} 10... Ngxe5 {[%clk 0:01:59.1]} 11. Nxe5
{[%clk 0:02:45.6]} 11... Qxe5 {[%clk 0:01:56.1]} 12. Bf4 {[%clk 0:02:44.4]}
12... Qh5 {[%clk 0:01:52.6]} 13. Rfe1 {[%clk 0:02:40.2]} 13... Nb4 {[%clk
0:01:38.8]} 14. Rad1 {[%clk 0:02:33.5]} 14... Nxd3 {[%clk 0:01:36.6]} 15. Rxd3
{[%clk 0:02:33.1]} 15... Qg6 {[%clk 0:01:33]} 16. Nxd5 {[%clk 0:02:29.2]} 16...
Qxg3 {[%clk 0:01:28.3]} 17. hxg3 {[%clk 0:02:26.9]} 17... Ra7 {[%clk 0:01:22.6]}
18. Nb6 {[%clk 0:02:15.4]} 18... Bb4 {[%clk 0:01:13.6]} 19. c3 {[%clk
0:02:14.6]} 19... Ba5 {[%clk 0:01:06.7]} 20. Nxc8 {[%clk 0:02:13.5]} 20... O-O
{[%clk 0:01:06.9]} 21. Nxa7 {[%clk 0:02:12.4]} 1-0

[Event "*** SCC Grand Prix: Titled Tuesday Blitz"]
[Site "Chess.com"]
[Date "2020.09.29"]
[Round "2"]
[White "ChrisTool2"]
[Black "kagg1125"]
[Result "0-1"]
[WhiteElo "2320"]
[BlackElo "2556"]
[TimeControl "180+1"]
[EndTime "10:13:57 PDT"]
[Termination "kagg1125 won by resignation"]

1. d4 {[%clk 0:03:00.9]} 1... Nf6 {[%clk 0:02:57.9]} 2. c4 {[%clk 0:03:00.7]}
2... g6 {[%clk 0:02:56.8]} 3. f3 {[%clk 0:03:01]} 3... Nh5 {[%clk 0:02:46.3]} 4.
Nc3 {[%clk 0:02:56.4]} 4... e5 {[%clk 0:02:45]} 5. Nh3 {[%clk 0:02:49.7]} 5...
Bg7 {[%clk 0:02:41.5]} 6. d5 {[%clk 0:02:47.4]} 6... O-O {[%clk 0:02:36.8]} 7.
Nf2 {[%clk 0:02:42.6]} 7... d6 {[%clk 0:02:33.4]} 8. e3 {[%clk 0:02:33.2]} 8...
f5 {[%clk 0:02:28.7]} 9. Be2 {[%clk 0:02:32.2]} 9... f4 {[%clk 0:02:22.4]} 10.
exf4 {[%clk 0:02:23.4]} 10... exf4 {[%clk 0:02:19.9]} 11. O-O {[%clk 0:02:17.4]}
11... Qh4 {[%clk 0:02:11.4]} 12. Nb5 {[%clk 0:02:10.1]} 12... Na6 {[%clk
0:02:09.9]} 13. Nd4 {[%clk 0:02:06.2]} 13... Bd7 {[%clk 0:01:45.1]} 14. Re1
{[%clk 0:01:56.1]} 14... Rae8 {[%clk 0:01:41.9]} 15. Bf1 {[%clk 0:01:50.2]}
15... Bxd4 {[%clk 0:01:32.3]} 16. Qxd4 {[%clk 0:01:44.7]} 16... Rxe1 {[%clk
0:01:30.2]} 17. b4 {[%clk 0:01:41.5]} 17... Qf6 {[%clk 0:01:18]} 18. Qd2 {[%clk
0:01:36.6]} 18... Rxf1+ {[%clk 0:01:13.3]} 0-1

[Event "*** SCC Grand Prix: Titled Tuesday Blitz"]
[Site "Chess.com"]
[Date "2020.09.29"]
[Round "2"]
[White "Beltraxtor"]
[Black "Zemerovv"]
[Result "1-0"]
[WhiteElo "2583"]
[BlackElo "2305"]
[TimeControl "180+1"]
[EndTime "10:14:05 PDT"]
[Termination "Beltraxtor won by resignation"]

1. e4 {[%clk 0:02:54.9]} 1... g6 {[%clk 0:03:00.9]} 2. d4 {[%clk 0:02:54.4]}
2... Bg7 {[%clk 0:03:00.8]} 3. Nc3 {[%clk 0:02:53.1]} 3... d6 {[%clk 0:03:00.4]}
4. Nf3 {[%clk 0:02:53.6]} 4... a6 {[%clk 0:03:00.8]} 5. Be2 {[%clk 0:02:53.5]}
5... b5 {[%clk 0:03:00.4]} 6. O-O {[%clk 0:02:54.4]} 6... Bb7 {[%clk 0:03:00.3]}
7. Re1 {[%clk 0:02:55]} 7... b4 {[%clk 0:02:59.2]} 8. Nd5 {[%clk 0:02:50.8]}
8... e6 {[%clk 0:02:54.1]} 9. Nxb4 {[%clk 0:02:48.9]} 9... Bxe4 {[%clk
0:02:50.2]} 10. Ng5 {[%clk 0:02:48.7]} 10... Bb7 {[%clk 0:02:34.2]} 11. Bf3
{[%clk 0:02:35.5]} 11... d5 {[%clk 0:02:32.6]} 12. c4 {[%clk 0:02:23]} 12... Ne7
{[%clk 0:02:26.5]} 13. cxd5 {[%clk 0:01:46.2]} 13... Nxd5 {[%clk 0:02:23.7]} 14.
Qa4+ {[%clk 0:01:42]} 14... Kf8 {[%clk 0:01:57.7]} 15. Rxe6 {[%clk 0:01:29.4]}
15... Kg8 {[%clk 0:01:14.6]} 16. Re8+ {[%clk 0:01:27.6]} 1-0